bitfinex-derivatives/quotes_ETHF0:USTF0_20241008
["timestamp","ask_amount","ask_price","bid_price","bid_amount"]
[1728350839150,1.25262,2431.2,2431.1,0.4052]
[1728350839458,0.41147,2430.9,2430.8,3.5981]
[1728350840450,0.41146,2431.0,2430.8,4.00958]
[1728350840849,0.3972,2430.9,2430.8,4.00958]
[1728350841760,0.3972,2430.9,2430.8,3.5981]
[1728350841959,0.80867,2430.9,2430.8,4.00958]
[1728350843054,0.80867,2430.9,2430.8,3.5981]
[1728350843653,0.80867,2430.9,2430.8,4.00958]
[1728350843958,0.80867,2430.9,2430.8,3.5981]
[1728350844350,0.80867,2430.9,2430.8,3.2078]
[1728350847254,0.79867,2430.9,2430.8,3.2078]
[1728350851158,0.3872,2430.9,2430.6,3.2078]
[1728350851360,0.4115,2430.7,2430.6,3.2078]
[1728350851560,0.82259,2430.8,2430.6,3.61931]
[1728350851861,0.4111,2430.8,2430.6,3.61931]
[1728350852050,0.4115,2430.7,2430.6,3.2078]
[1728350852455,0.82259,2430.8,2430.6,3.61931]
[1728350854565,0.82259,2430.8,2430.6,0.41151]
[1728350854867,0.4111,2430.8,2430.6,3.61931]
[1728350855257,0.8226,2430.8,2430.6,3.61931]
[1728350856660,0.8226,2430.8,2430.6,3.2078]
[1728350856856,0.8226,2430.8,2430.7,0.4115]
[1728350856857,0.4111,2430.8,2430.7,0.4115]
[1728350857059,0.4111,2430.8,2430.7,1.8915]
[1728350857258,0.79868,2430.9,2430.7,1.8915]
[1728350857759,0.79868,2430.9,2430.8,0.4018]
[1728350860861,0.8075,2431.1,2430.8,0.4018]
[1728350861060,0.41144,2431.1,2430.9,2.72757]
[1728350861966,0.804,2431.3,2430.9,5.5239]
[1728350862366,0.41143,2431.2,2431.0,0.41145]
[1728350862562,0.804,2431.3,2431.0,0.41145]
[1728350862563,0.41143,2431.1,2431.0,0.41145]
[1728350863060,0.41143,2431.1,2430.9,5.93535]
[1728350863970,0.41143,2431.2,2431.0,0.41144]
[1728350864270,0.41143,2431.2,2431.1,1.48]
[1728350865662,0.41141,2431.3,2431.1,1.89143]
[1728350865867,0.41142,2431.2,2431.1,1.48]
[1728350866768,0.41145,2431.0,2430.9,4.0439]
[1728350867770,0.41144,2431.1,2430.9,4.0439]
[1728350868671,0.41144,2431.1,2430.9,4.45536]
[1728350870062,0.41144,2431.1,2430.9,5.93536]
[1728350871264,1.80997042,2431.3,2430.9,5.93536]
[1728350871265,0.41143,2431.2,2430.9,5.93536]
[1728350871774,0.41143,2431.2,2431.0,0.41145]
[1728350872469,0.83224,2431.1,2430.9,2.72756]
[1728350873867,0.83224,2431.1,2431.0,0.4242]
[1728350875172,0.83224,2431.1,2431.0,1.9042]
[1728350879778,0.41145,2431.0,2430.9,1.8931]
[1728350879977,0.81395,2431.0,2430.9,1.8931]
[1728350883073,1.43114,2431.0,2430.7,0.4027]
[1728350883279,0.41148,2430.8,2430.7,0.4027]
[1728350883677,0.41148,2430.8,2430.7,2.2942]
[1728350883874,0.41148,2430.8,2430.7,1.8827]
[1728350884983,0.41148,2430.8,2430.7,2.2942]
[1728350885381,0.41148,2430.8,2430.7,1.8827]
[1728350885696,0.41148,2430.8,2430.7,2.2942]
[1728350887077,0.41148,2430.8,2430.7,1.8827]
[1728350891179,0.41148,2430.8,2430.7,2.2942]
[1728350891387,0.41148,2430.8,2430.7,1.8827]
[1728350891784,0.41148,2430.8,2430.7,2.2942]
[1728350892082,0.41148,2430.8,2430.7,1.8827]
[1728350897992,0.41148,2430.8,2430.7,2.2942]
[1728350898891,0.41147,2430.9,2430.8,0.41147]
[1728350899788,0.4025,2431.0,2430.8,0.3965]
[1728350899989,0.81395,2431.0,2430.9,1.89147]
[1728350900289,0.4025,2431.0,2430.9,1.89147]
[1728350901387,0.4114,2431.3,2430.9,4.6878]
[1728350901584,0.4114,2431.3,2431.2,1.48]
[1728350901986,0.4114,2431.3,2431.2,1.8676]
[1728350902490,1.20929,2431.4,2431.2,2.279]
[1728350902989,0.7979,2431.4,2431.2,2.279]
[1728350903194,0.81099,2431.4,2431.3,0.4146]
[1728350903783,0.41139,2431.4,2431.3,0.4146]
[1728350903988,0.41139,2431.4,2431.3,0.826]
[1728350904284,0.7987,2431.6,2431.4,0.41138]
[1728350904487,1.21005,2431.6,2431.4,1.89138]
[1728350904787,1.21005,2431.6,2431.4,1.48]
[1728350904983,1.21005,2431.6,2431.4,1.89138]
[1728350905888,0.41136,2431.5,2431.4,1.89138]
[1728350906095,1.02824,2432.0,2431.4,1.48]
[1728350906292,0.4113,2431.9,2431.8,1.48]
[1728350906796,4.5233,2431.9,2431.8,1.48]
[1728350907593,4.112,2431.9,2431.8,1.48]
[1728350907894,1.21979,2432.0,2431.8,1.89131]
[1728350908092,1.21979,2432.0,2431.9,1.48]
[1728350908288,0.8065,2432.5,2432.1,0.41125]
[1728350908491,3.2078,2432.6,2432.2,0.41123]
[1728350908492,0.7951,2432.4,2432.2,0.41123]
[1728350908791,0.7951,2432.4,2432.2,3.2078]
[1728350908989,0.7951,2432.4,2431.9,4.4738]
[1728350909191,0.41126,2432.2,2432.0,1.48]
[1728350909494,0.41126,2432.2,2431.9,1.266]
[1728350909495,0.41131,2431.8,2431.7,0.4246]
[1728350909701,0.41131,2431.8,2431.6,1.48]
[1728350909888,0.8131,2431.7,2431.6,1.48]
[1728350910388,0.8131,2431.7,2431.6,1.89135]
[1728350910594,0.8131,2431.7,2431.6,1.48]
[1728350913097,1.22443,2431.7,2431.6,1.48]
[1728350914398,0.8131,2431.7,2431.6,1.48]
[1728350915096,0.8131,2431.7,2431.6,1.89135]
[1728350915300,0.8131,2431.7,2431.6,1.48]
[1728350916394,0.8131,2431.7,2431.6,1.89135]
[1728350917997,1.48,2432.1,2431.6,1.89135]
[1728350917998,0.41127,2432.1,2431.9,0.41129]
[1728350918200,0.4205,2432.0,2431.7,0.3927]
[1728350918390,0.4205,2432.0,2431.9,0.4113]
[1728350919997,0.4205,2432.0,2431.9,1.8913]
[1728350921203,0.4205,2432.0,2431.9,1.48]
[1728350921404,0.4205,2432.0,2431.9,1.8913]
[1728350922106,0.83178,2432.0,2431.9,1.48]
[1728350922496,0.83178,2432.0,2431.9,1.8815]
[1728350926501,0.4205,2432.0,2431.9,2.2928]
[1728350926898,0.4019,2432.1,2431.9,1.8815]
[1728350927102,0.4019,2432.1,2432.0,0.41128]
[1728350927295,0.4019,2432.1,2432.0,0.82638]
[1728350927797,0.81516,2432.2,2432.0,2.30638]
[1728350930002,0.81516,2432.2,2432.0,1.8951]
[1728350930202,0.81516,2432.2,2432.0,2.30638]
[1728350931101,0.4039,2432.2,2432.0,1.8951]
[1728350931301,0.41126,2432.1,2432.0,1.8951]
[1728350932810,0.41126,2432.1,2432.0,0.4151]
[1728350933002,0.41128,2432.0,2431.9,0.4015]
[1728350933202,0.4113,2431.9,2431.8,1.8691]
[1728350933404,0.8317,2431.9,2431.8,1.8691]
[1728350933609,0.83166,2431.9,2431.8,1.8691]
[1728350934000,0.4204,2431.9,2431.8,1.8691]
[1728350935012,0.83166,2431.9,2431.8,1.8691]
[1728350935404,0.83166,2431.9,2431.8,0.3891]
[1728350935605,0.83166,2431.9,2431.7,2.30399]
[1728350935805,0.41127,2431.8,2431.7,1.8927]
[1728350936006,0.41127,2431.8,2431.7,0.4127]
[1728350936208,0.41127,2431.8,2431.7,1.8927]
[1728350936608,0.41127,2431.8,2431.7,1.48]
[1728350938717,0.41127,2431.8,2431.7,1.89129]
[1728350938916,0.4204,2431.9,2431.7,1.89129]
[1728350939211,0.83167,2431.9,2431.8,0.41127]
[1728350939412,0.83167,2431.9,2431.8,0.83437]
[1728350939611,0.83167,2431.9,2431.8,0.4231]
[1728350941813,0.83167,2431.9,2431.8,1.9031]
[1728350942015,0.80075,2432.0,2431.8,2.31436]
[1728350942514,0.80075,2432.0,2431.9,0.3909]
[1728350946021,0.78018668,2432.3,2432.0,0.41123]
[1728350946022,1.19139668,2432.3,2432.0,0.41123]
[1728350946316,1.19139668,2432.3,2432.2,1.48]
[1728350946317,0.81911,2432.3,2432.2,1.48]
[1728350948014,0.4149,2432.4,2432.2,2.2783]
[1728350948219,0.41119,2432.3,2432.2,2.2783]
[1728350948617,0.4149,2432.4,2432.3,0.41119]
[1728350949018,0.4149,2432.4,2432.2,5.4861]
[1728350949320,0.41113,2432.7,2432.4,0.41117]
[1728350949517,0.41113,2432.7,2432.6,1.48]
[1728350949710,1.23002,2432.8,2432.6,1.48]
[1728350949914,0.8189,2432.8,2432.6,1.48]
[1728350950108,0.41112,2432.7,2432.6,1.48]
[1728350951019,0.8189,2432.8,2432.6,1.48]
[1728350951221,0.8189,2432.8,2432.7,0.3952]
[1728350951222,1.23002,2432.8,2432.7,0.3952]
[1728350951426,1.23002,2432.8,2432.7,0.8025]
[1728350954224,2.01078737,2432.8,2432.7,0.8025]
[1728350961127,1.23002,2432.8,2432.7,0.8025]
[1728350962430,1.23002,2432.8,2432.7,0.3952]
[1728350962731,0.41115,2432.6,2432.4,0.41117]
[1728350963132,0.39,2432.5,2432.3,2.2739]
[1728350963434,0.41118,2432.4,2432.3,2.2739]
[1728350963626,0.82368,2432.4,2432.3,2.2739]
[1728350964537,0.4125,2432.4,2432.3,2.2739]
[1728350964736,0.4125,2432.4,2432.3,2.68509]
[1728350965743,0.82368,2432.4,2432.3,2.68509]
[1728350966248,0.4125,2432.4,2432.3,2.68509]
[1728350966543,0.41118,2432.4,2432.3,2.68509]
[1728350969452,0.41118,2432.4,2432.3,2.2739]
[1728350973450,0.41118,2432.4,2432.3,2.68509]
[1728350976457,0.41118,2432.4,2432.3,2.2739]
[1728350979059,0.41118,2432.4,2432.3,1.8782]
[1728350979367,0.41118,2432.4,2432.3,0.3982]
[1728350982563,0.41118,2432.4,2432.3,0.80939]
[1728350983064,1.35752264,2432.5,2432.3,2.28939]
[1728350983258,1.20257,2432.5,2432.4,1.48]
[1728350983461,1.20257,2432.5,2432.4,1.8781]
[1728350988069,0.7914,2432.5,2432.4,1.8781]
[1728350988263,0.39,2432.5,2432.4,2.28928]
[1728350988471,0.80116,2432.5,2432.4,2.3013]
[1728350988864,0.80116,2432.5,2432.4,2.71248]
[1728350989071,0.80116,2432.5,2432.4,2.3013]
[1728350989672,0.80116,2432.5,2432.4,2.71248]
[1728350989673,0.39,2432.5,2432.4,2.71248]
[1728350990172,0.39,2432.5,2432.4,2.3013]
[1728350990467,1.44143,2432.7,2432.4,2.71248]
[1728350990675,0.41116,2432.5,2432.4,2.3013]
[1728350999276,0.41116,2432.5,2432.4,0.3981]
[1728351000471,0.41116,2432.5,2432.4,1.8781]
[1728351000674,0.41115,2432.6,2432.4,2.28928]
[1728351000878,0.8399,2432.7,2432.5,0.80355]
[1728351001076,1.19149449,2432.8,2432.6,1.48]
[1728351001273,1.19149449,2432.8,2432.7,0.4133]
[1728351001474,1.19149449,2432.8,2432.7,0.8345]
[1728351001678,1.19149449,2432.8,2432.7,1.24563]
[1728351001883,1.19149449,2432.8,2432.7,0.8345]
[1728351002377,0.78038449,2432.8,2432.7,0.8345]
[1728351002882,1.19149449,2432.8,2432.7,0.8345]
[1728351003080,0.78038449,2432.8,2432.7,1.24563]
[1728351003384,1.19149449,2432.8,2432.7,0.8345]
[1728351004185,1.58199449,2432.8,2432.7,0.8345]
[1728351004385,1.58199449,2432.8,2432.7,2.3145]
[1728351004592,1.17088449,2432.8,2432.7,2.3145]
[1728351004876,1.19149449,2432.8,2432.7,2.3145]
[1728351005289,1.19149449,2432.8,2432.7,1.8933]
[1728351006475,1.19149449,2432.8,2432.7,0.60482363]
[1728351006881,0.41113,2432.7,2432.6,0.4036]
[1728351007082,1.24113,2432.7,2432.6,0.4036]
[1728351013383,0.41116,2432.5,2432.4,0.4058]
[1728351013587,0.41116,2432.5,2432.4,0.81698]
[1728351013788,0.41116,2432.5,2432.4,0.4058]
[1728351014085,0.41116,2432.5,2432.4,0.81698]
[1728351015683,0.41115,2432.6,2432.4,0.81698]
[1728351015879,0.41115,2432.6,2432.4,2.29698]
[1728351016080,0.41114,2432.6,2432.4,1.8858]
[1728351016390,0.41114,2432.6,2432.4,2.29696]
[1728351017089,0.83,2432.7,2432.4,2.29696]
[1728351017287,0.41115,2432.6,2432.4,2.29696]
[1728351018784,0.41116,2432.5,2432.4,1.8858]
[1728351018988,0.41116,2432.5,2432.4,2.29698]
[1728351019186,0.41116,2432.5,2432.4,1.8858]
[1728351019890,1.85784,2432.7,2432.4,2.29698]
[1728351020197,0.41115,2432.6,2432.4,2.29698]
[1728351021395,0.41116,2432.6,2432.4,2.29698]
[1728351023491,0.41116,2432.5,2432.4,0.4058]
[1728351023692,0.41116,2432.5,2432.0,3.2078]
[1728351023693,0.41123,2432.1,2432.0,3.2078]
[1728351024000,0.41123,2432.1,2432.0,3.5974]
[1728351024196,0.41123,2432.1,2432.0,3.2078]
[1728351027095,0.79633,2432.1,2432.0,3.2078]
[1728351028596,4.90833,2432.1,2432.0,3.2078]
[1728351028790,4.90833,2432.1,2431.7,0.096]
[1728351028791,0.41127,2431.9,2431.7,0.096]
[1728351028990,0.41127,2431.9,2431.6,2.70031]
[1728351029190,0.4061,2431.8,2431.6,1.22031]
[1728351029398,0.81738,2431.8,2431.7,1.48]
[1728351031401,0.81738,2431.8,2431.6,2.289]
[1728351031799,0.41129,2431.7,2431.6,2.289]
[1728351032002,0.41129,2431.7,2431.6,1.48]
[1728351032500,0.41129,2431.7,2431.4,0.4004]
[1728351032501,0.41133,2431.5,2431.4,0.4004]
[1728351032703,0.4031,2431.6,2431.4,0.4004]
[1728351032999,0.83413,2431.5,2431.4,0.4004]
[1728351033696,0.4228,2431.5,2431.4,0.4004]
[1728351033897,0.4228,2431.5,2431.4,1.8804]
[1728351035001,0.83413,2431.5,2431.4,1.8804]
[1728351035404,0.4228,2431.5,2431.4,1.8804]
[1728351038301,0.4228,2431.5,2431.4,5.0882]
[1728351038603,0.83413,2431.5,2431.4,3.6082]
[1728351038901,1.23173,2431.5,2431.4,3.6082]
[1728351039901,1.23173,2431.5,2430.9,0.4983]
[1728351039902,0.41141,2431.0,2430.9,0.4983]
[1728351040111,3.2078,2431.3,2430.9,0.7918]
[1728351040406,0.41137,2431.3,2431.1,1.48]
[1728351040594,1.84873,2431.5,2431.1,1.48]
[1728351040791,0.41138,2431.2,2431.1,1.48]
[1728351042299,1.02839,2431.4,2430.9,0.7918]
[1728351042506,0.41141,2431.1,2430.9,2.2718]
[1728351044200,0.41141,2431.0,2430.9,2.2718]
[1728351044397,0.41141,2431.0,2430.9,0.7918]
[1728351046796,0.41141,2431.0,2430.9,0.4023]
[1728351046992,0.41145,2430.8,2430.7,4.6878]
[1728351047801,0.41145,2430.8,2430.7,3.2078]
[1728351052202,0.41145,2430.8,2430.7,4.6878]
[1728351054105,0.41144,2430.9,2430.7,4.6878]
[1728351054297,0.41141,2431.1,2430.8,0.41144]
[1728351054611,0.41139,2431.2,2431.0,1.48]
[1728351054900,0.41139,2431.2,2431.1,0.8153]
[1728351055102,0.79,2431.6,2431.1,0.8153]
[1728351055307,0.3962,2431.6,2431.2,1.48]
[1728351055509,0.41137,2431.3,2431.1,0.8153]
[1728351056001,0.41138,2431.2,2431.1,0.4062]
[1728351061511,0.41145,2430.8,2430.7,3.2078]
[1728351062408,0.41148,2430.6,2430.5,2.68]
[1728351062603,0.41148,2430.6,2430.5,0.3904]
[1728351068422,4.1144,2430.6,2430.3,0.4072]
[1728351068717,0.41155,2430.2,2430.1,3.2078]
[1728351068907,0.41155,2430.2,2430.1,3.9904]
[1728351069411,0.41155,2430.2,2430.1,0.7826]
[1728351069813,0.4184,2430.3,2430.1,2.2626]
[1728351070018,0.41153,2430.3,2430.2,1.48]
[1728351070616,0.41152,2430.4,2430.2,1.48]
[1728351070820,0.4104,2430.5,2430.2,1.48]
[1728351071023,0.41153,2430.3,2430.2,1.48]
[1728351073517,0.41155,2430.2,2430.1,3.9904]
[1728351074024,0.41155,2430.2,2430.1,8.1056]
[1728351076321,0.41155,2430.2,2430.1,4.8978]
[1728351076523,1.89155,2430.2,2430.1,0.3937]
[1728351076717,0.41162,2429.8,2429.7,4.4101]
[1728351077121,0.41162,2429.8,2429.7,3.6031]
[1728351079424,0.41162,2429.8,2429.7,3.2078]
[1728351081127,1.8941,2429.9,2429.5,1.8763]
[1728351081435,0.41165,2429.6,2429.5,1.8763]
[1728351081927,0.41165,2429.6,2429.5,9.2001]
[1728351082321,0.41165,2429.6,2429.5,5.0841]
[1728351087325,0.41165,2429.6,2429.5,3.6041]
[1728351087526,0.4141,2429.9,2429.5,3.6041]
[1728351087830,0.41162,2429.8,2429.6,0.41165]
[1728351088129,1.02889,2430.2,2429.7,2.2884]
[1728351088429,0.41158,2430.0,2429.8,0.4116]
[1728351088637,0.41159,2430.0,2429.8,0.41161]
[1728351088934,0.41159,2430.0,2429.9,0.4207]
[1728351089335,0.41157,2430.1,2429.9,0.4207]
[1728351089629,0.41157,2430.1,2429.9,0.83229]
[1728351089827,0.41157,2430.1,2429.9,0.4207]
[1728351090229,1.48,2430.3,2429.9,0.4207]
[1728351090533,0.41158,2430.0,2429.9,0.4207]
[1728351090923,0.41157,2430.1,2429.9,0.4207]
[1728351091525,0.41158,2430.0,2429.9,0.4207]
[1728351093136,0.80317,2430.1,2429.9,0.4207]
[1728351093433,0.41158,2430.0,2429.9,0.4207]
[1728351093633,0.3916,2430.1,2429.9,0.4207]
[1728351094034,0.80317,2430.1,2429.9,0.4207]
[1728351094932,0.41158,2430.0,2429.8,3.2078]
[1728351095138,0.4119,2430.0,2429.8,3.6194]
[1728351095332,0.4119,2430.0,2429.9,0.4128]
[1728351095642,0.82348,2430.0,2429.9,0.4128]
[1728351095828,0.82348,2430.0,2429.8,3.2078]
[1728351096035,0.82348,2430.0,2429.8,3.61941]
[1728351096841,0.82348,2430.0,2429.9,0.4189]
[1728351097045,1.8919,2430.0,2429.8,3.2078]
[1728351097244,0.4116,2429.9,2429.8,3.2078]
[1728351098441,1.8916,2429.9,2429.8,3.2078]
[1728351098749,0.41163,2429.7,2429.6,0.4189]
[1728351100149,0.83702,2429.8,2429.6,0.4189]
[1728351100347,0.41163,2429.7,2429.6,0.4189]
[1728351100652,0.41166,2429.5,2429.4,3.6236]
[1728351101549,0.81306,2429.6,2429.4,3.6236]
[1728351102141,0.41166,2429.5,2429.4,3.6236]
[1728351102346,0.41166,2429.5,2428.9,2.37741]
[1728351102347,1.8814,2429.6,2429.0,3.2078]
[1728351102549,0.41172,2429.2,2429.0,3.6025]
[1728351102751,1.8693,2429.4,2429.0,5.0825]
[1728351102945,0.3893,2429.4,2429.0,5.0825]
[1728351103154,0.41171,2429.3,2429.0,5.0825]
[1728351103454,0.3893,2429.4,2429.0,5.49424]
[1728351103651,0.3893,2429.4,2429.0,5.0825]
[1728351103852,0.41173,2429.2,2429.0,5.49425]
[1728351104049,1.48,2429.3,2429.0,1.9252]
[1728351104249,0.41178,2428.8,2428.7,0.096]
[1728351104449,1.48,2428.8,2428.2,3.7233]
[1728351104656,0.41186,2428.4,2428.2,3.6273]
[1728351104859,0.41186,2428.4,2428.3,3.2078]
[1728351105357,1.48,2428.4,2428.2,0.4195]
[1728351105553,0.4119,2428.1,2428.0,0.4854]
[1728351105758,1.8919,2428.1,2428.0,0.3894]
[1728351106351,0.41192,2428.0,2427.9,0.4199]
[1728351107255,0.41192,2428.0,2427.5,0.096]
[1728351107256,7.3384,2428.0,2427.5,0.096]
[1728351107458,0.41199,2427.6,2427.4,1.2194]
[1728351107661,3.22,2428.0,2427.4,1.2194]
[1728351107858,3.22,2428.4,2427.6,3.2078]
[1728351108055,3.22,2428.4,2427.6,3.61979]
[1728351108056,0.41193,2428.0,2427.6,3.61979]
[1728351108255,0.41194,2427.9,2427.6,3.61979]
[1728351108557,1.02972,2428.2,2427.6,3.2078]
[1728351108753,1.02972,2428.2,2427.7,3.2078]
[1728351108754,0.41194,2427.9,2427.7,3.2078]
[1728351108954,0.4154,2428.6,2427.7,3.2078]
[1728351108955,3.2078,2430.1,2427.8,8.65]
[1728351109158,4.135,2432.1,2427.7,16.23106851]
[1728351109159,0.41142,2431.0,2429.4,0.41167]
[1728351109359,0.8316,2431.9,2429.3,3.2078]
[1728351109360,3.2078,2432.1,2430.9,3.22]
[1728351109566,0.15896056,2432.1,2431.5,3.2078]
[1728351109864,3.2078,2432.5,2431.8,3.2078]
[1728351110055,6.4278,2432.5,2431.8,3.2078]
[1728351110251,0.06462363,2432.4,2431.8,3.2078]
[1728351110455,0.06462363,2432.4,2431.9,3.2078]
[1728351110653,6.49195657,2432.3,2431.9,3.2078]
[1728351110855,3.22,2432.3,2431.9,3.2078]
[1728351111063,3.22,2432.5,2431.9,3.2078]
[1728351111257,0.06415647,2432.4,2431.9,3.2078]
[1728351112260,3.22,2432.3,2431.9,3.2078]
[1728351112568,8.062,2432.2,2431.5,0.622]
[1728351112864,8.062,2432.2,2431.2,3.2078]
[1728351112865,3.95,2432.2,2431.4,3.2078]
[1728351113159,3.2078,2431.9,2431.1,3.3038]
[1728351113758,3.2078,2431.6,2431.1,0.096]
[1728351113975,3.2078,2431.6,2430.8,3.2078]
[1728351113976,7.1578,2431.6,2430.8,3.2078]
[1728351114460,3.95,2431.3,2430.8,3.2078]
[1728351114854,7.1578,2431.3,2430.5,5.34216037]
[1728351116062,3.95,2431.3,2430.5,5.34216037]
[1728351116266,3.2078,2431.5,2430.5,5.34216037]
[1728351116457,3.2078,2431.2,2430.5,5.34216037]
[1728351117363,3.2078,2430.9,2430.5,2.13436037]
[1728351117759,4.1144,2430.8,2430.5,2.13436037]
[1728351118164,3.2078,2430.6,2430.2,0.096]
[1728351118366,3.2078,2430.6,2429.9,0.096]
[1728351118568,3.95,2430.4,2429.8,3.2078]
[1728351119464,3.95,2430.4,2429.8,3.61941]
[1728351119669,3.2078,2430.6,2429.8,3.61941]
[1728351119859,3.2078,2430.6,2429.9,0.41159]
[1728351120063,3.2078,2430.6,2430.1,3.2078]
[1728351120769,3.2078,2430.6,2429.8,3.6194]
[1728351120970,3.61928,2430.6,2429.8,3.2078]
[1728351121367,3.2078,2430.3,2429.8,3.2078]
[1728351121872,3.95,2430.1,2429.6,0.096]
[1728351122076,3.95,2430.1,2429.5,3.2078]
[1728351123172,3.2078,2430.3,2429.5,3.2078]
[1728351123375,0.4115,2430.5,2429.7,0.41162]
[1728351123574,3.6193,2430.5,2429.8,3.2078]
[1728351124063,3.2078,2430.5,2429.8,3.2078]
[1728351124468,3.6193,2430.5,2429.8,3.6194]
[1728351125078,3.6193,2430.5,2429.8,3.2078]
[1728351125270,3.2078,2430.5,2429.8,3.2078]
[1728351125471,3.6193,2430.5,2429.8,3.6194]
[1728351125671,0.41153,2430.4,2429.8,3.2078]
[1728351125871,0.41154,2430.3,2429.8,3.2078]
[1728351126065,0.41152,2430.4,2429.8,3.2078]
[1728351126268,0.41152,2430.4,2429.7,0.41162]
[1728351126465,3.2078,2430.5,2429.5,3.2078]
[1728351126673,3.6193,2430.5,2429.9,3.2078]
[1728351126974,3.6193,2430.5,2429.8,0.4116]
[1728351127170,3.6193,2430.5,2429.9,3.2078]
[1728351127171,3.2078,2430.5,2429.9,3.2078]
[1728351127375,3.2078,2430.5,2429.9,3.61939]
[1728351127672,3.2078,2430.5,2430.1,0.41155]
[1728351127878,0.4083,2430.8,2430.0,0.41157]
[1728351128175,0.41148,2430.6,2430.0,0.41157]
[1728351128376,0.41151,2430.5,2429.9,3.2078]
[1728351128580,5.38692,2430.8,2429.9,3.2078]
[1728351128769,0.4115,2430.5,2429.9,3.2078]
[1728351128970,5.38692,2430.8,2429.9,3.2078]
[1728351129170,0.4115,2430.5,2429.9,3.2078]
[1728351130179,0.41152,2430.4,2429.7,0.41162]
[1728351130377,0.41151,2430.5,2429.8,0.41161]
[1728351130673,4.3583,2430.8,2429.8,0.41161]
[1728351130880,0.41151,2430.4,2429.8,0.41161]
[1728351131075,4.3583,2430.8,2430.0,3.2078]
[1728351131076,0.41151,2430.5,2430.0,3.2078]
[1728351131480,4.3583,2430.8,2430.0,3.2078]
[1728351131781,0.41151,2430.4,2430.0,3.2078]
[1728351132474,4.3583,2430.8,2429.8,0.41161]
[1728351132676,0.41152,2430.4,2429.8,0.41161]
[1728351133497,0.41152,2430.4,2429.7,3.2078]
[1728351133811,0.41152,2430.4,2429.8,0.4116]
[1728351134885,0.41153,2430.3,2429.8,0.4116]
[1728351135193,0.4083,2430.8,2430.0,3.2078]
[1728351135481,0.41149,2430.6,2430.1,0.41156]
[1728351135685,0.4083,2430.8,2430.0,3.2078]
[1728351135985,0.41152,2430.4,2430.0,3.61937]
[1728351136587,0.41152,2430.4,2430.0,3.2078]
[1728351136785,0.41151,2430.5,2430.0,3.61937]
[1728351136989,0.41152,2430.4,2430.0,3.61937]
[1728351137286,1.43695,2430.8,2430.0,3.61937]
[1728351137287,0.4115,2430.5,2430.1,0.41156]
[1728351137514,1.43695,2430.8,2430.0,3.61937]
[1728351137687,0.41151,2430.5,2430.0,3.61937]
[1728351137886,1.02866,2430.7,2430.0,3.2078]
[1728351138189,0.4115,2430.5,2430.1,0.41156]
[1728351138383,1.02866,2430.7,2430.0,3.2078]
[1728351138584,0.41152,2430.4,2430.0,3.61937]
[1728351138789,0.41152,2430.4,2430.0,3.2078]
[1728351139085,0.41155,2430.2,2430.0,3.2078]
[1728351139290,0.41154,2430.3,2430.0,3.2078]
[1728351139886,0.8228,2430.8,2430.0,3.2078]
[1728351140089,0.41154,2430.3,2430.0,3.2078]
[1728351140288,0.41154,2430.3,2430.0,3.61938]
[1728351140588,0.41154,2430.3,2430.0,3.2078]
[1728351141214,1.02866,2430.7,2430.0,3.2078]
[1728351141395,1.02866,2430.7,2430.0,3.61936]
[1728351141610,0.41152,2430.4,2430.0,3.61936]
[1728351141797,0.8228,2430.8,2430.0,3.2078]
[1728351141995,0.41153,2430.3,2430.0,3.2078]
[1728351142294,0.41152,2430.4,2430.0,3.61937]
[1728351142486,1.0287,2430.6,2430.0,3.2078]
[1728351142687,0.41152,2430.4,2430.0,3.61938]
[1728351142995,0.41152,2430.4,2430.1,0.41156]
[1728351143189,0.8228,2430.8,2430.0,3.2078]
[1728351143387,1.02851,2431.1,2430.3,3.2078]
[1728351143587,0.41142,2431.0,2430.6,3.61926]
[1728351143797,3.608,2431.4,2430.6,3.2078]
[1728351143798,0.41144,2430.9,2430.6,3.2078]
[1728351144486,0.41143,2430.9,2430.6,3.2078]
[1728351144692,0.41143,2430.9,2430.6,3.61927]
[1728351145112,0.41143,2430.9,2430.6,3.2078]
[1728351145401,0.41143,2430.9,2430.6,3.61928]
[1728351146792,1.02836,2431.4,2430.6,3.2078]
[1728351146995,0.4114,2431.1,2430.9,3.2078]
[1728351147421,0.41141,2431.0,2430.9,3.2078]
[1728351149201,1.02841,2431.3,2430.9,3.2078]
[1728351149202,0.4114,2431.1,2430.9,3.2078]
[1728351149605,0.41141,2431.0,2430.9,3.2078]
[1728351151104,0.41149,2430.5,2430.4,0.4013]
[1728351151705,0.41149,2430.6,2430.4,0.4013]
[1728351151906,0.41147,2430.7,2430.5,3.2078]
[1728351152606,0.41143,2430.9,2430.5,3.61928]
[1728351153101,0.41142,2431.0,2430.6,0.41147]
[1728351153511,1.02847,2431.2,2430.5,3.6041]
[1728351153807,0.41142,2431.0,2430.6,0.41147]
[1728351154000,0.41141,2431.1,2430.7,0.41145]
[1728351154203,40.8,2431.4,2430.8,3.2078]
[1728351154204,1.02841,2431.3,2430.8,3.2078]
[1728351154402,0.41137,2431.3,2430.9,0.41142]
[1728351154701,0.41142,2431.0,2430.8,3.2078]
[1728351155307,0.41142,2431.0,2430.5,0.3963]